bitfinex/quotes_BTCUSD_20220306
["timestamp","ask_amount","ask_price","bid_price","bid_amount"]
[1646600162359,0.20297524,38894.0,38893.0,0.384999]
[1646600162558,0.20297524,38894.0,38892.0,0.31155506]
[1646600163413,0.20297524,38894.0,38893.0,0.384999]
[1646600163608,0.20297524,38894.0,38892.0,0.31155506]
[1646600165509,0.20297524,38894.0,38890.0,0.384999]
[1646600165709,0.20297524,38894.0,38889.0,0.21747974]
[1646600165710,0.0643257,38893.0,38889.0,0.21747974]
[1646600166111,0.19298082,38892.0,38889.0,0.21747974]
[1646600166310,0.19298082,38892.0,38890.0,0.384999]
[1646600166558,0.192979,38891.0,38890.0,0.384999]
[1646600166758,0.20297524,38894.0,38893.0,0.32429026]
[1646600172407,0.58780262,38894.0,38893.0,0.32429026]
[1646600172808,0.20297524,38894.0,38893.0,0.32429026]
[1646600177157,0.20297524,38894.0,38893.0,0.32445414]
[1646600179306,0.20490356,38894.0,38893.0,0.32445414]
[1646600189358,0.20490356,38894.0,38893.0,0.70945314]
[1646600189958,0.20490356,38894.0,38893.0,0.70934944]
[1646600191259,0.20490356,38894.0,38893.0,0.32435044]
[1646600191462,0.20490356,38894.0,38893.0,0.70934944]
[1646600191860,0.20490356,38894.0,38893.0,0.32435044]
[1646600192061,0.20490356,38894.0,38893.0,0.70934944]
[1646600193114,0.20490356,38894.0,38893.0,0.32435044]
[1646600196467,0.58973094,38894.0,38893.0,0.32435044]
[1646600196669,0.20490356,38894.0,38893.0,0.32435044]
[1646600200070,0.20490356,38894.0,38893.0,0.31995711]
[1646600202123,0.97472994,38894.0,38893.0,0.31995711]
[1646600202713,0.064344,38891.0,38883.0,0.01285]
[1646600202915,0.44934164,38889.0,38883.0,0.01285]
[1646600203115,0.386098,38888.0,38883.0,0.01285]
[1646600203313,0.07602424,38889.0,38883.0,0.01285]
[1646600203515,0.46212224,38889.0,38883.0,0.01285]
[1646600204462,0.19301914,38888.0,38883.0,0.01285]
[1646600206564,0.06433874,38887.0,38883.0,0.01285]
[1646600206764,0.12867974,38887.0,38883.0,0.01285]
[1646600209319,0.12867974,38887.0,38880.0,0.48471305]
[1646600209721,0.12867974,38887.0,38882.0,0.004]
[1646600210919,0.12867974,38887.0,38880.0,0.29431028]
[1646600213174,0.12867974,38887.0,38880.0,0.22059192]
[1646600215305,0.51477774,38887.0,38880.0,0.22059192]
[1646600216105,0.12867974,38887.0,38880.0,0.22059192]
[1646600219060,0.42619237,38886.0,38880.0,0.22059192]
[1646600219261,0.064334,38884.0,38881.0,0.384999]
[1646600219463,0.10405513,38883.0,38881.0,0.384999]
[1646600219662,0.064334,38884.0,38881.0,0.384999]
[1646600220963,0.064334,38884.0,38881.0,0.449328]
[1646600221167,0.06432,38887.0,38882.0,0.0516]
[1646600221365,0.00206858,38888.0,38883.0,0.384999]
[1646600221663,0.00206858,38888.0,38885.0,0.384999]
[1646600221864,0.00206858,38888.0,38886.0,0.0516]
[1646600222063,0.00206858,38888.0,38887.0,0.384999]
[1646600223816,0.06432585,38889.0,38887.0,0.384999]
[1646600225717,0.06432585,38889.0,38886.0,0.0516]
[1646600225919,0.128673,38888.0,38887.0,0.384999]
[1646600226117,0.06433534,38886.0,38882.0,0.384999]
[1646600227465,0.12867234,38886.0,38882.0,0.384999]
[1646600227867,0.12867234,38886.0,38883.0,0.384999]
[1646600228064,0.128673,38884.0,38881.0,0.384999]
[1646600228465,0.128673,38884.0,38876.0,0.0566]
[1646600228669,0.45044554,38883.0,38876.0,0.005]
[1646600228868,0.45044554,38883.0,38872.0,0.20963475]
[1646600229067,0.45044554,38883.0,38872.0,0.41229164]
[1646600229266,0.45044554,38883.0,38872.0,0.40772456]
[1646600229467,0.064348,38883.0,38872.0,0.40772456]
[1646600229668,0.1287,38883.0,38872.0,0.40772456]
[1646600229967,0.20271046,38879.0,38872.0,0.40772456]
[1646600230209,0.13836246,38879.0,38873.0,0.384999]
[1646600230417,0.13836246,38879.0,38872.0,0.40772456]
[1646600230909,0.13836246,38879.0,38873.0,0.384999]
[1646600231112,0.128696,38878.0,38873.0,0.384999]
[1646600231408,0.128696,38878.0,38872.0,0.40772456]
[1646600231409,0.19304447,38878.0,38872.0,0.40772456]
[1646600231610,0.19304447,38878.0,38872.0,0.19808981]
[1646600234567,0.19613376,38878.0,38874.0,0.00421096]
[1646600239610,0.19613376,38878.0,38876.0,0.00420183]
[1646600240817,0.00308929,38878.0,38877.0,0.384999]
[1646600241013,0.00308929,38878.0,38877.0,0.38493857]
[1646600241212,0.00308929,38878.0,38877.0,0.384999]
[1646600241467,0.00308929,38878.0,38877.0,0.385112]
[1646600243869,0.00308929,38878.0,38877.0,0.38930926]
[1646600245074,0.00308929,38878.0,38877.0,0.00419726]
[1646600245320,0.00308929,38878.0,38877.0,0.38930926]
[1646600248724,0.00308929,38878.0,38877.0,0.00419726]
[1646600248962,0.00308929,38878.0,38877.0,0.38930926]
[1646600249561,0.12868666,38882.0,38880.0,0.29259176]
[1646600249762,0.13796775,38882.0,38880.0,0.29259176]
[1646600253015,0.52087471,38882.0,38880.0,0.29259176]
[1646600253420,0.13796775,38882.0,38880.0,0.29259176]
[1646600253820,0.07362385,38882.0,38880.0,0.29259176]
[1646600254420,0.07510362,38882.0,38881.0,0.00165044]
[1646600254819,0.07499902,38882.0,38881.0,0.00165044]
[1646600259474,0.07499902,38882.0,38880.0,0.29592876]
[1646600260324,0.385112,38881.0,38880.0,0.29592876]
[1646600261723,0.10208,38881.0,38880.0,0.29592876]
[1646600261927,0.07699902,38882.0,38880.0,0.29592876]
[1646600262824,0.385112,38881.0,38880.0,0.29592876]
[1646600264282,0.385112,38881.0,38880.0,0.29425091]
[1646600264484,0.10208,38881.0,38880.0,0.29425091]
[1646600264683,0.385112,38881.0,38880.0,0.29425091]
[1646600265084,0.07362385,38882.0,38880.0,0.29425091]
[1646600265882,0.385112,38881.0,38880.0,0.29425091]
[1646600266082,0.07362385,38882.0,38880.0,0.29425091]
[1646600267184,0.385112,38881.0,38880.0,0.29425091]
[1646600267384,0.07362385,38882.0,38880.0,0.29425091]
[1646600273874,0.064342,38883.0,38881.0,0.436712]
[1646600274076,0.129883,38884.0,38881.0,0.508622]
[1646600274077,0.0012,38884.0,38881.0,0.508622]
[1646600274883,0.0012,38884.0,38882.0,0.18389415]
[1646600275078,0.0012,38884.0,38883.0,0.436712]
[1646600275524,0.0012,38884.0,38883.0,0.49827201]
[1646600278321,0.0012,38884.0,38883.0,0.436712]
[1646600278721,0.0012,38884.0,38883.0,0.422309]
[1646600278974,0.0012,38884.0,38883.0,0.42563451]
[1646600279575,0.01380353,38888.0,38886.0,0.13104799]
[1646600279777,0.01380353,38888.0,38887.0,0.0516]
[1646600280085,0.14245553,38888.0,38887.0,0.0516]
[1646600280480,0.14245553,38888.0,38886.0,0.13104799]
[1646600280677,0.37988156,38887.0,38886.0,0.13104799]
[1646600282279,0.14445553,38888.0,38886.0,0.13104799]
[1646600283317,0.14245553,38888.0,38886.0,0.13104799]
[1646600284319,0.14245553,38888.0,38886.0,0.13437371]
[1646600284518,0.385043,38887.0,38886.0,0.13437371]
[1646600284718,0.37988156,38887.0,38886.0,0.13437371]
[1646600284924,0.49644356,38887.0,38886.0,0.13437371]
[1646600285617,0.385043,38885.0,38880.0,0.04081147]
[1646600285820,0.116562,38883.0,38880.0,0.04081147]
[1646600286022,0.4494,38881.0,38880.0,0.04081147]
[1646600286225,0.82931388,38881.0,38880.0,0.04081147]
[1646600286484,0.76495688,38881.0,38880.0,0.04081147]
[1646600290230,1.1,38880.0,38870.0,0.00017819]
[1646600290434,1.1,38880.0,38869.0,0.01285]
[1646600290435,0.06436424,38876.0,38869.0,0.01285]
[1646600290627,0.76346914,38875.0,38870.0,0.00017819]
[1646600291430,0.116562,38873.0,38870.0,0.00017819]
[1646600291628,0.385043,38871.0,38869.0,0.01285]
[1646600291828,0.385043,38871.0,38870.0,0.00017817]
[1646600292028,0.38918736,38872.0,38870.0,0.00017817]
[1646600292230,0.01076122,38872.0,38870.0,0.00017817]
[1646600292830,0.01076122,38872.0,38869.0,0.01285]
[1646600293033,0.45355428,38872.0,38869.0,0.01302817]
[1646600293235,0.45355428,38872.0,38869.0,0.00017817]
[1646600293236,0.385043,38871.0,38869.0,0.00017817]
[1646600293431,0.37842614,38870.0,38869.0,0.00017817]
[1646600293733,0.49498814,38870.0,38869.0,0.00017817]
[1646600293978,0.12876541,38866.0,38853.0,0.1485]
[1646600294180,0.385043,38864.0,38855.0,0.19271455]
[1646600294379,0.37842614,38865.0,38855.0,0.19271455]
[1646600294578,0.01307782,38866.0,38855.0,0.19271455]
[1646600295180,0.01307782,38866.0,38859.0,0.18507427]
[1646600295379,0.12875742,38862.0,38855.0,0.25708755]
[1646600295684,0.14179833,38862.0,38855.0,0.25708755]
[1646600295879,0.14179833,38862.0,38858.0,0.004]
[1646600296679,0.14179833,38862.0,38858.0,0.00417833]
[1646600297078,0.14179833,38862.0,38858.0,0.00017833]
[1646600297479,0.116562,38861.0,38858.0,0.00017833]
[1646600297721,0.14179833,38862.0,38855.0,0.19271455]
[1646600297921,0.14179833,38862.0,38858.0,0.00017833]
[1646600298920,0.14179833,38862.0,38855.0,0.19271455]
[1646600299123,0.14366721,38862.0,38858.0,0.00017833]
[1646600300027,0.14366721,38862.0,38857.0,0.004]
[1646600300223,0.14366721,38862.0,38858.0,0.00017778]
[1646600301222,0.064377,38859.0,38857.0,0.17965975]
[1646600301474,0.064377,38859.0,38858.0,0.00017778]
[1646600302478,0.064377,38859.0,38857.0,0.17965975]
[1646600302675,0.064377,38859.0,38857.0,0.17983753]
[1646600303276,0.12875394,38859.0,38857.0,0.17983753]
[1646600303580,0.12875394,38859.0,38857.0,0.17965975]
[1646600304077,0.064377,38859.0,38857.0,0.17965975]
[1646600308971,0.064377,38859.0,38856.0,0.00317819]
[1646600309172,0.064377,38859.0,38856.0,0.00017819]
[1646600309380,0.06661926,38858.0,38856.0,0.00017819]
[1646600309574,0.00972006,38858.0,38848.0,0.37842614]
[1646600309774,0.00972006,38858.0,38855.0,0.00017819]
[1646600309977,0.51480802,38861.0,38860.0,0.99027994]
[1646600310474,0.52513843,38861.0,38860.0,0.99027994]
[1646600311277,0.52413843,38861.0,38860.0,0.99027994]
[1646600312723,0.13909543,38861.0,38860.0,0.99027994]
[1646600312923,0.01033041,38861.0,38860.0,0.99027994]
[1646600313125,0.01033041,38861.0,38860.0,1.36678822]
[1646600313325,0.01033041,38861.0,38860.0,1.75183122]
[1646600313527,0.01251993,38867.0,38860.0,1.80343122]
[1646600313726,0.01251993,38867.0,38861.0,0.385043]
[1646600313928,0.50167958,38872.0,38862.0,0.42810828]
[1646600314125,0.50167958,38872.0,38871.0,0.16925386]
[1646600314324,0.01337958,38872.0,38871.0,0.16925386]
[1646600314524,0.01337958,38872.0,38866.0,0.37650828]
[1646600314723,0.064355,38871.0,38867.0,0.00017819]
[1646600315124,0.064355,38871.0,38868.0,0.20392541]
[1646600315323,0.064355,38871.0,38867.0,0.00017819]
[1646600315523,0.064355,38871.0,38867.0,0.06453119]
[1646600315724,0.064355,38871.0,38869.0,0.18687498]
[1646600319484,0.064355,38871.0,38870.0,0.00286739]
[1646600323973,0.0674918,38871.0,38870.0,0.00286739]
[1646600327176,0.0674918,38871.0,38867.0,0.00017818]
[1646600328424,0.0674918,38871.0,38868.0,0.16452965]
[1646600328825,0.0674918,38871.0,38869.0,0.385043]
[1646600329127,0.0031368,38871.0,38869.0,0.385043]
[1646600329330,0.0031368,38871.0,38870.0,0.35633394]
[1646600329526,0.0031368,38871.0,38870.0,0.38791039]
[1646600331024,0.0031368,38871.0,38870.0,0.43951039]
[1646600331227,0.01018375,38878.0,38870.0,0.8897295]
[1646600331485,0.552463,38882.0,38881.0,0.18597385]
[1646600331486,0.01034218,38882.0,38881.0,0.18597385]
[1646600331687,0.466069,38886.0,38881.0,0.23757385]
[1646600331688,0.2374,38886.0,38881.0,0.23757385]
[1646600331888,0.25087167,38886.0,38881.0,0.23757385]
[1646600332283,0.25087167,38886.0,38881.0,0.0516]
[1646600332884,0.38522113,38885.0,38881.0,0.0516]
[1646600333085,0.00017813,38885.0,38881.0,0.0516]
[1646600333283,0.064336,38883.0,38881.0,0.0516]
[1646600335325,0.12867526,38883.0,38881.0,0.0516]
[1646600337228,0.76153752,38882.0,38881.0,0.0516]
[1646600337428,0.76153752,38882.0,38874.0,0.0516]
[1646600337429,0.12870793,38880.0,38874.0,0.0516]
[1646600337627,0.1390006,38880.0,38874.0,0.0516]
[1646600337828,0.128707,38882.0,38875.0,0.385043]
[1646600338029,0.0132382,38880.0,38876.0,0.0516]
[1646600338428,0.19304144,38879.0,38876.0,0.0516]
[1646600338974,0.128696,38879.0,38876.0,0.0516]
[1646600339774,0.064343,38879.0,38876.0,0.0516]
[1646600339977,0.06452114,38879.0,38876.0,0.0516]
[1646600340976,0.064343,38879.0,38876.0,0.0516]
[1646600341177,0.06452114,38879.0,38876.0,0.0516]
[1646600342075,0.064343,38879.0,38876.0,0.0516]
[1646600342279,0.12869005,38879.0,38876.0,0.0516]
[1646600342474,0.12886819,38879.0,38876.0,0.0516]
[1646600343323,0.12869005,38879.0,38876.0,0.0516]
[1646600343723,0.12886819,38879.0,38876.0,0.0516]
[1646600343924,0.12886819,38879.0,38878.0,0.0015399]
[1646600344124,0.06452519,38879.0,38878.0,0.0015399]
[1646600344526,0.06434705,38879.0,38878.0,0.0015399]
[1646600347676,0.06434705,38879.0,38872.0,0.04468996]
[1646600347877,0.06435,38878.0,38873.0,0.385043]
[1646600348076,0.06435,38878.0,38873.0,0.386043]
[1646600348276,0.06435,38878.0,38873.0,0.001]
[1646600348477,0.06452941,38877.0,38873.0,0.001]
[1646600349079,0.128703,38876.0,38873.0,0.001]
[1646600349878,0.128703,38876.0,38872.0,0.04468996]
[1646600350083,0.128703,38876.0,38873.0,0.385043]
[1646600351523,0.128703,38876.0,38872.0,0.04468996]
[1646600354073,0.128703,38876.0,38873.0,0.385043]
[1646600354278,0.13074056,38876.0,38873.0,0.385043]
[1646600354673,0.064351,38875.0,38873.0,0.385043]
[1646600354875,0.13074056,38876.0,38875.0,0.128702]
[1646600358030,0.13074056,38876.0,38875.0,0.123702]
[1646600358226,0.13074056,38876.0,38875.0,0.508745]
[1646600359831,0.00203756,38876.0,38875.0,0.93560366]
[1646600368731,0.00203756,38876.0,38875.0,1.72230366]
[1646600368985,0.00203756,38876.0,38875.0,0.93560366]
[1646600369589,0.00203756,38876.0,38875.0,0.49896066]
[1646600369790,0.00203756,38876.0,38875.0,0.123702]
[1646600370586,0.00203756,38876.0,38875.0,0.508745]
[1646600370988,0.00203756,38876.0,38875.0,0.123702]
[1646600371192,0.00203756,38876.0,38875.0,0.508745]
[1646600372387,0.00203756,38876.0,38875.0,0.123702]
[1646600373641,0.00203756,38876.0,38875.0,0.508745]
[1646600374142,0.00203756,38876.0,38875.0,0.123702]
[1646600375242,0.00203756,38876.0,38875.0,0.508745]
[1646600376675,0.00203756,38876.0,38875.0,0.123702]
[1646600377876,0.00203756,38876.0,38875.0,0.508745]
[1646600380081,0.00203756,38876.0,38875.0,0.69789199]
[1646600380745,0.00203756,38876.0,38875.0,0.90356968]
[1646600381045,0.00203756,38876.0,38875.0,1.27882834]
[1646600381248,0.00203756,38876.0,38875.0,0.89378534]
[1646600381446,0.00203756,38876.0,38875.0,1.27882834]
[1646600381651,0.00203756,38876.0,38875.0,1.33042834]
[1646600382546,0.00203756,38876.0,38875.0,2.11712834]
[1646600384982,0.2374,38886.0,38885.0,0.17793617]
[1646600385283,0.301729,38886.0,38885.0,0.17793617]
[1646600386884,0.301729,38886.0,38883.0,0.115927]
[1646600387931,0.301729,38886.0,38883.0,0.0516]
[1646600388130,0.30190726,38886.0,38883.0,0.0516]
[1646600389130,0.301729,38886.0,38883.0,0.0516]
[1646600389335,0.30190726,38886.0,38883.0,0.0516]
[1646600389531,0.30190726,38886.0,38885.0,0.00317459]
[1646600390332,0.301729,38886.0,38885.0,0.00317459]
[1646600399477,0.2374,38886.0,38885.0,0.00317459]
[1646600399684,0.2374,38886.0,38885.0,0.38821759]
[1646600399880,0.2374,38886.0,38885.0,0.43981759]
[1646600400080,0.2374,38886.0,38885.0,0.81507625]
[1646600400279,0.00017811,38887.0,38886.0,0.28257651]
[1646600400478,0.00017811,38887.0,38886.0,1.09447817]
[1646600400880,0.00017811,38887.0,38886.0,1.09564465]
[1646600401081,0.011746,38894.0,38886.0,1.09564465]
[1646600401283,0.1414,38898.0,38897.0,0.17885971]
[1646600401481,0.0011,38898.0,38897.0,1.00236137]
[1646600401679,0.0011,38898.0,38897.0,0.61731837]
[1646600401881,0.0011,38898.0,38897.0,0.24205971]
[1646600402084,0.0011,38898.0,38897.0,0.2487078]
[1646600402383,0.0011,38898.0,38897.0,0.06984809]
[1646600402581,0.0011,38898.0,38897.0,0.07095109]
[1646600402829,0.0011,38898.0,38897.0,0.00664809]
[1646600403034,0.0011,38898.0,38897.0,0.39169109]
[1646600403228,0.0011,38898.0,38897.0,0.00664809]
[1646600407787,0.0011,38898.0,38897.0,0.00658771]
[1646600407985,0.065422,38898.0,38892.0,0.0516]
[1646600408186,0.06432375,38897.0,38892.0,0.0516]
[1646600408792,0.69543426,38896.0,38885.0,0.00317459]
[1646600408998,0.064341,38894.0,38885.0,0.00317459]
[1646600409192,0.140919,38890.0,38885.0,0.00317459]
[1646600409789,0.140919,38890.0,38888.0,0.00658771]
[1646600409988,0.140919,38890.0,38885.0,0.00317459]
[1646600409989,0.00017811,38889.0,38885.0,0.00317459]
[1646600410241,0.064337,38888.0,38885.0,0.00317459]
[1646600410635,0.37525866,38887.0,38885.0,0.00317459]
[1646600411038,0.06451512,38888.0,38885.0,0.00317459]
[1646600411238,0.06451512,38888.0,38886.0,0.00658771]
[1646600411239,0.37525866,38887.0,38886.0,0.00658771]
[1646600411640,0.78487466,38887.0,38885.0,0.00317459]
[1646600411840,0.76030166,38886.0,38885.0,0.00317459]
[1646600412039,0.86030166,38886.0,38885.0,0.00317459]
[1646600412742,0.86030166,38886.0,38885.0,0.0097623]
[1646600413139,1.1,38885.0,38882.0,0.0044314]
[1646600413343,0.449401,38883.0,38882.0,0.0044314]
[1646600413540,0.82465966,38883.0,38882.0,0.0044314]
[1646600413740,0.92465966,38883.0,38882.0,0.0044314]
[1646600413990,1.1,38882.0,38875.0,0.123702]
[1646600414194,0.54342066,38881.0,38875.0,0.123702]
[1646600414389,0.1,38876.0,38875.0,0.123702]
[1646600414589,0.86030166,38876.0,38875.0,0.123702]
[1646600415793,0.92467466,38876.0,38875.0,0.123702]
[1646600417095,0.97627466,38876.0,38875.0,0.123702]
[1646600417935,1.12627466,38876.0,38875.0,0.123702]
[1646600418232,1.1,38875.0,38872.0,0.00017817]
[1646600418534,0.29314403,38873.0,38872.0,0.00017817]
[1646600418730,1.10440801,38873.0,38872.0,0.00017817]
[1646600418931,1.10440801,38873.0,38860.0,0.99027994]
[1646600418932,1.216562,38872.0,38860.0,0.99027994]
[1646600419133,0.385043,38869.0,38860.0,0.99027994]
[1646600419434,0.216562,38867.0,38860.0,0.99027994]
[1646600419635,0.385043,38865.0,38860.0,0.99027994]
[1646600419835,0.140919,38862.0,38860.0,0.99027994]
[1646600420035,0.116562,38861.0,38860.0,0.99027994]
[1646600420235,0.15317176,38862.0,38861.0,0.23312399]
[1646600420439,0.63818676,38862.0,38861.0,0.23312399]
[1646600421035,0.63812534,38862.0,38861.0,0.23312399]
[1646600425235,0.77904434,38862.0,38861.0,0.23312399]
[1646600425541,0.39402934,38862.0,38861.0,0.23312399]
[1646600425740,0.29402934,38862.0,38861.0,0.23312399]
[1646600432488,0.67904434,38862.0,38861.0,0.23312399]
[1646600433133,0.34402934,38862.0,38861.0,0.23312399]
[1646600441842,0.72904434,38862.0,38861.0,0.2330627]
[1646600442341,1.1029596,38862.0,38861.0,0.2330627]
[1646600442741,1.1029596,38862.0,38861.0,0.2280627]
[1646600444600,0.72904434,38862.0,38861.0,0.2280627]
[1646600447200,0.34402934,38862.0,38861.0,0.2280627]
[1646600450940,0.067382,38864.0,38862.0,0.26895291]
[1646600451139,0.067382,38864.0,38863.0,0.75914426]
[1646600451140,0.003,38864.0,38863.0,0.75914426]
[1646600451593,0.1,38876.0,38863.0,0.75914426]
[1646600451594,0.01356248,38874.0,38863.0,0.81074426]
[1646600451798,0.01356248,38874.0,38869.0,0.21924538]
[1646600451799,0.5,38873.0,38869.0,0.21924538]
[1646600451996,0.01356248,38874.0,38870.0,0.37299908]
[1646600452600,0.064353,38872.0,38869.0,0.21924538]
[1646600452797,0.064353,38872.0,38868.0,0.19038694]
[1646600452994,0.064353,38872.0,38869.0,0.37299908]
[1646600454697,0.064353,38872.0,38869.0,0.37317726]
[1646600455537,0.064353,38872.0,38869.0,0.37299908]
[1646600455734,0.064353,38872.0,38869.0,0.00017817]
[1646600456736,0.064353,38872.0,38868.0,0.56338602]
[1646600456941,0.064353,38872.0,38869.0,0.00017817]
[1646600457539,0.513753,38871.0,38869.0,0.00017817]
[1646600457739,0.5781252,38871.0,38869.0,0.00017817]
[1646600457937,0.5781252,38871.0,38862.0,0.64195199]
[1646600457938,0.05,38870.0,38862.0,0.64195199]
[1646600458139,0.064367,38868.0,38862.0,0.26895291]
[1646600458439,0.19310936,38868.0,38862.0,0.42139972]
[1646600458639,0.128742,38867.0,38862.0,0.42139972]
[1646600459087,0.19311097,38867.0,38862.0,0.42139972]
[1646600459290,0.19311097,38867.0,38863.0,0.00017819]
[1646600460187,0.064367,38868.0,38865.0,0.16725842]
[1646600460388,0.064367,38868.0,38866.0,0.75822808]
[1646600460588,0.064367,38868.0,38866.0,0.385229]
[1646600460787,0.064367,38868.0,38866.0,0.75822808]
[1646600460988,0.064367,38868.0,38867.0,0.75822808]
[1646600461586,0.064367,38868.0,38867.0,0.385229]
[1646600462388,0.064367,38868.0,38867.0,0.375229]
[1646600464872,0.01122966,38869.0,38867.0,0.74822808]
[1646600465070,0.36854836,38876.0,38868.0,0.80982808]
[1646600465269,0.40571904,38879.0,38868.0,0.83554808]
[1646600465466,0.40571904,38879.0,38874.0,0.25]
[1646600465467,0.39437124,38879.0,38874.0,0.25]
[1646600465667,0.00017812,38878.0,38875.0,1.04249694]
[1646600465869,0.00017812,38878.0,38877.0,0.25]
[1646600466067,0.00017812,38878.0,38877.0,1.00817308]
[1646600466489,0.39437124,38879.0,38878.0,0.385174]
[1646600466692,0.39454938,38879.0,38878.0,0.75817308]
[1646600467495,0.39437124,38879.0,38878.0,0.75817308]
[1646600468794,0.39437124,38879.0,38878.0,0.385174]
[1646600469000,0.40589959,38879.0,38875.0,0.002]
[1646600469192,0.40589959,38879.0,38876.0,0.385174]
[1646600469792,0.40589959,38879.0,38875.0,0.002]
[1646600469793,0.47024359,38879.0,38875.0,0.385174]
[1646600469998,0.47024359,38879.0,38875.0,0.57113362]
[1646600470245,0.47042173,38879.0,38875.0,0.385174]
[1646600470543,0.53476844,38879.0,38875.0,0.385174]
[1646600471147,0.5345903,38879.0,38875.0,0.385174]
[1646600471542,0.53476844,38879.0,38875.0,0.385174]
[1646600471942,0.53476844,38879.0,38874.0,0.25]
[1646600472144,0.47042173,38879.0,38875.0,0.385174]
[1646600472343,0.47024359,38879.0,38876.0,0.385174]
[1646600472744,0.00017814,38878.0,38876.0,0.385174]
[1646600473343,0.00017814,38878.0,38876.0,0.53584447]
[1646600473744,0.47024359,38879.0,38876.0,0.385174]
[1646600474004,0.47042173,38879.0,38873.0,0.37299908]
[1646600474204,0.47042173,38879.0,38872.0,0.56996376]
[1646600474803,0.47024359,38879.0,38873.0,0.16080665]
[1646600475004,0.00017814,38878.0,38873.0,0.16080665]
[1646600475208,0.06452314,38878.0,38874.0,0.385174]
[1646600475406,0.06452314,38878.0,38874.0,0.37299908]
[1646600475603,0.06452314,38878.0,38872.0,0.56996376]
[1646600476004,0.064345,38878.0,38873.0,0.385174]
[1646600476204,0.064345,38878.0,38872.0,0.56996376]
[1646600476205,0.06452314,38878.0,38872.0,0.56996376]
[1646600476406,0.06452314,38878.0,38873.0,0.385174]
[1646600476607,0.06452314,38878.0,38872.0,0.63430676]
[1646600476808,0.06452314,38878.0,38873.0,0.385174]
[1646600477208,0.06452314,38878.0,38872.0,0.63430676]
[1646600477209,0.064345,38878.0,38872.0,0.63430676]
[1646600477407,0.06452314,38878.0,38873.0,0.385174]
[1646600478443,0.064345,38878.0,38873.0,0.385174]
[1646600478641,0.06452314,38878.0,38873.0,0.385174]
[1646600479142,0.06452314,38878.0,38872.0,0.56996376]
[1646600479341,0.06452314,38878.0,38873.0,0.385174]
[1646600479542,0.064345,38878.0,38874.0,0.385174]
[1646600479743,0.064345,38878.0,38873.0,0.385174]
[1646600479942,0.06452314,38878.0,38873.0,0.385174]
[1646600480745,0.064345,38878.0,38873.0,0.385174]
[1646600481143,0.06452314,38878.0,38873.0,0.385174]
[1646600481586,0.06452314,38878.0,38873.0,0.449516]
[1646600481990,0.064345,38878.0,38873.0,0.449516]
[1646600482388,0.06452314,38878.0,38873.0,0.449516]
[1646600483190,0.064345,38878.0,38873.0,0.449516]
[1646600483391,0.06452314,38878.0,38873.0,0.449516]
[1646600484391,0.064345,38878.0,38873.0,0.44943839]
[1646600484590,0.06452314,38878.0,38873.0,0.385115]
[1646600484992,0.06452314,38878.0,38872.0,0.003]
[1646600485251,0.37299908,38877.0,38872.0,0.003]
[1646600485450,0.513841,38876.0,38872.0,0.003]
[1646600485653,0.009995,38874.0,38872.0,0.003]
[1646600485850,0.06436703,38874.0,38870.0,0.00017818]
[1646600486048,0.75811408,38873.0,38870.0,0.00017818]
[1646600486246,0.009995,38872.0,38870.0,0.00017818]
[1646600486447,0.138729,38872.0,38870.0,0.00017818]
[1646600486649,0.37299908,38871.0,38870.0,0.00017818]
[1646600486848,0.37299908,38871.0,38866.0,0.17310642]
[1646600487049,0.07801085,38870.0,38869.0,0.00017817]
[1646600488051,0.07801085,38870.0,38862.0,0.26895291]
[1646600488354,0.064369,38867.0,38862.0,0.26895291]
[1646600488550,0.01364485,38870.0,38869.0,0.17668168]
[1646600489194,0.39875985,38870.0,38869.0,0.17668168]
[1646600489396,0.01364485,38870.0,38869.0,0.17668168]
[1646600492194,0.01364485,38870.0,38869.0,0.56179668]
[1646600492853,0.01250573,38875.0,38870.0,0.385115]
[1646600494347,0.07685573,38875.0,38870.0,0.38529317]
[1646600495350,0.07685573,38875.0,38870.0,0.385115]
[1646600495648,0.07685573,38875.0,38870.0,0.38529317]
[1646600496496,0.07685573,38875.0,38870.0,0.385115]
[1646600496695,0.07685573,38875.0,38870.0,0.38529317]
[1646600497695,0.07685573,38875.0,38870.0,0.385115]
[1646600497895,0.07685573,38875.0,38870.0,0.38529317]
[1646600498297,0.12685573,38875.0,38870.0,0.38529317]
[1646600498701,0.12685573,38875.0,38871.0,0.385115]
[1646600498899,0.07685573,38875.0,38872.0,0.385115]
[1646600499403,0.01250573,38875.0,38872.0,0.385115]
[1646600499798,0.01250573,38875.0,38870.0,0.00017817]
[1646600499998,0.01250573,38875.0,38871.0,0.385115]
[1646600500244,0.01250573,38875.0,38870.0,0.00017817]
[1646600500245,0.01250573,38875.0,38869.0,0.17668168]
[1646600500446,0.01250573,38875.0,38871.0,0.064345]
[1646600501049,0.01250573,38875.0,38872.0,0.385115]
[1646600502847,0.01250573,38875.0,38873.0,0.385115]
[1646600503046,0.01250573,38875.0,38872.0,0.385115]
[1646600504100,0.01250573,38875.0,38872.0,0.381908]
[1646600504494,0.07685473,38875.0,38872.0,0.38513]
[1646600505896,0.07685473,38875.0,38871.0,0.38513]
[1646600506502,0.01250573,38875.0,38871.0,0.449476]
[1646600507946,0.01250573,38875.0,38871.0,0.38513]
[1646600509347,0.07685573,38875.0,38871.0,0.38513]
[1646600509949,0.14121021,38875.0,38870.0,0.25017817]
[1646600510951,0.14146337,38875.0,38870.0,0.25]
[1646600511151,0.14146337,38875.0,38870.0,0.25017817]
[1646600511997,0.14171653,38875.0,38870.0,0.25017817]
[1646600512202,0.14171653,38875.0,38870.0,0.25]
[1646600512399,0.14171653,38875.0,38870.0,0.25017817]
[1646600513000,0.14196969,38875.0,38870.0,0.25017817]
[1646600513400,0.14196969,38875.0,38870.0,0.25]
[1646600513600,0.14398613,38875.0,38870.0,0.25017817]
[1646600514000,0.14423929,38875.0,38870.0,0.25017817]
[1646600514605,0.14423929,38875.0,38870.0,0.25]
[1646600514805,0.14423929,38875.0,38870.0,0.25017817]
[1646600515242,0.14449245,38875.0,38870.0,0.25017817]
[1646600515845,0.14449245,38875.0,38870.0,0.25]
[1646600516046,0.14474561,38875.0,38870.0,0.25017817]
[1646600517049,0.14474561,38875.0,38870.0,0.25]
[1646600517244,0.14499877,38875.0,38870.0,0.25017817]
[1646600518145,0.14525193,38875.0,38870.0,0.25]
[1646600518346,0.15184726,38875.0,38870.0,0.25017817]
[1646600518548,0.08749278,38875.0,38871.0,0.38513]
[1646600518748,0.08749278,38875.0,38872.0,0.38513]